bitfinex-derivatives/quotes_ETHF0:USTF0_20260305
["timestamp","ask_amount","ask_price","bid_price","bid_amount"]
[1772687349969,2.23469061,2134.8,2134.1,0.23423]
[1772687350368,2.23469061,2134.8,2134.1,2.46303952]
[1772687351573,2.23469061,2135.2,2134.3,2.22880952]
[1772687361675,2.23469061,2135.2,2134.5,1.9199639]
[1772687362677,2.23469061,2135.2,2134.6,1.9199639]
[1772687365379,0.00428265,2135.3,2134.8,1.9199639]
[1772687365581,1.88088991,2135.3,2134.8,1.9199639]
[1772687366085,1.87660726,2135.6,2135.0,1.9199639]
[1772687367082,1.88138023,2135.6,2135.0,1.9199639]
[1772687371582,1.86263727,2136.0,2135.2,1.87210395]
[1772687372585,1.86605025,2136.0,2135.2,1.87210395]
[1772687387895,1.86605025,2136.0,2135.1,0.23412]
[1772687388395,1.86605025,2136.0,2135.1,2.10622395]
[1772687391197,1.86605025,2136.0,2135.1,6.01474407]
[1772687391392,1.86605025,2136.0,2135.4,1.67834677]
[1772687391589,1.86605025,2136.0,2135.4,1.68284067]
[1772687391999,0.00341298,2136.0,2135.4,1.68284067]
[1772687392198,1.78255449,2136.5,2135.6,1.67834677]
[1772687392398,1.78255449,2136.3,2135.6,1.67834677]
[1772687393394,1.22584953,2136.4,2135.8,1.67834677]
[1772687393894,1.78255449,2136.8,2135.8,1.67834677]
[1772687394098,1.78255449,2136.6,2135.8,1.67834677]
[1772687394393,1.78703207,2136.6,2136.0,1.67834677]
[1772687395199,0.00447758,2136.6,2136.0,1.67834677]
[1772687395696,1.78703207,2136.6,2136.0,1.67834677]
[1772687396289,0.00447758,2136.6,2136.0,1.67834677]
[1772687396890,1.78255449,2136.8,2136.0,1.67834677]
[1772687397093,1.78255449,2137.1,2136.4,1.67834677]
[1772687397900,1.78829126,2137.1,2136.4,1.67834677]
[1772687398595,1.78829126,2137.1,2136.5,0.23396]
[1772687398795,1.78255449,2137.6,2136.8,1.67834677]
[1772687399796,1.78731026,2137.6,2136.8,1.67834677]
[1772687400200,1.78255449,2137.5,2136.7,1.67834677]
[1772687403204,1.78255449,2137.5,2136.8,1.67834677]
[1772687404512,1.78255449,2137.4,2136.8,1.67834677]
[1772687406408,1.61033724,2137.4,2136.8,1.67834677]
[1772687406609,1.78255449,2137.5,2136.8,1.67834677]
[1772687407010,1.78731026,2137.6,2137.0,1.67834677]
[1772687407211,1.78731026,2137.6,2137.0,1.68401696]
[1772687409505,0.00475577,2137.6,2137.0,1.68401696]
[1772687409714,1.78255449,2137.9,2137.1,1.67834677]
[1772687409908,1.78255449,2137.8,2137.1,1.67834677]
[1772687410710,1.78851176,2137.8,2137.1,1.67834677]
[1772687411305,3.35920294,2137.6,2137.0,0.00567019]
[1772687411512,1.78255449,2137.5,2137.0,0.00567019]
[1772687412112,1.78255449,2137.3,2136.7,1.67834677]
[1772687413114,1.78255449,2137.3,2136.7,1.68347435]
[1772687413718,1.78255449,2137.3,2136.7,0.00512758]
[1772687414511,1.78255449,2137.1,2136.7,0.00512758]
[1772687416006,1.78255449,2137.1,2136.5,1.67834677]
[1772687417110,1.78255449,2137.1,2136.5,1.68208219]
[1772687417317,1.78255449,2137.1,2136.5,0.00373542]
[1772687419913,1.58483146,2136.9,2136.5,0.00373542]
[1772687420915,1.58483146,2136.7,2136.0,1.54334109]
[1772687421118,1.58483146,2136.5,2136.0,1.54334109]
[1772687421810,1.58483146,2136.5,2136.0,1.54779297]
[1772687422216,1.58483146,2136.5,2136.0,0.00445188]
[1772687422517,1.58483146,2136.5,2136.0,1.54779297]
[1772687422915,1.58483146,2136.3,2136.0,0.00445188]
[1772687423115,1.59079583,2136.3,2135.6,3.90852012]
[1772687423317,1.59079583,2136.3,2135.7,3.90852012]
[1772687423517,1.59079583,2136.3,2135.7,5.45186121]
[1772687423716,1.59079583,2136.3,2135.8,1.54334109]
[1772687424016,1.58483146,2136.1,2135.6,1.54334109]
[1772687424220,1.58483146,2136.1,2135.6,1.54744438]
[1772687424919,1.58483146,2136.1,2135.6,0.00410329]
[1772687426220,1.58483146,2136.7,2136.0,1.54334109]
[1772687426422,1.57664845,2136.4,2135.8,1.63297372]
[1772687426718,1.65426488,2136.5,2135.9,1.63297372]
[1772687426910,1.65426488,2136.7,2135.9,1.63297372]
[1772687427113,1.6597129,2136.7,2135.9,1.63297372]
[1772687429022,1.6597129,2136.7,2136.1,1.63297372]
[1772687430019,1.65426488,2136.5,2136.0,1.86699372]
[1772687432022,1.65426488,2136.6,2136.0,1.86699372]
[1772687434319,1.65426488,2136.6,2136.0,0.23402]
[1772687434525,1.65426488,2136.6,2136.0,1.86699372]
[1772687437720,1.65426488,2136.6,2136.0,1.63297372]
[1772687437927,1.65426488,2136.6,2135.7,1.63297372]
[1772687440825,1.65426488,2136.6,2135.9,1.63297372]
[1772687441025,1.6597129,2136.7,2135.9,1.63297372]
[1772687442228,1.6597129,2136.7,2136.1,1.63297372]
[1772687444426,1.6597129,2136.7,2135.8,1.63297372]
[1772687445128,1.6597129,2136.7,2136.0,1.63297372]
[1772687448022,1.6597129,2136.7,2135.9,1.86700372]
[1772687448426,1.65426488,2136.5,2135.9,1.63297372]
[1772687449634,1.65426488,2136.5,2135.7,5.30513626]
[1772687450530,1.39796628,2136.3,2135.7,5.30513626]
[1772687451133,1.39796628,2136.3,2135.7,1.39661614]
[1772687453231,1.39796628,2136.5,2135.7,1.39661614]
[1772687453534,1.39796628,2136.3,2135.7,1.39661614]
[1772687455836,1.39796628,2136.3,2135.8,1.39661614]
[1772687456331,1.39796628,2136.5,2135.8,1.39661614]
[1772687456536,1.39796628,2136.6,2135.8,1.39661614]
[1772687456737,1.39796628,2136.4,2135.8,1.39661614]
[1772687456937,1.39796628,2136.4,2135.9,1.39661614]
[1772687457841,1.39796628,2136.5,2135.9,1.39661614]
[1772687461331,1.39796628,2136.5,2135.7,4.14256012]
[1772687461539,1.39796628,2136.3,2135.7,1.63065614]
[1772687461947,1.39796628,2136.1,2135.6,0.00410329]
[1772687462138,1.39796628,2136.1,2135.6,1.40071943]
[1772687462639,1.4034143,2136.7,2136.1,1.39661614]
[1772687462836,1.39796628,2136.5,2136.1,1.39661614]
[1772687463334,0.00544802,2136.7,2136.1,1.39661614]
[1772687463335,1.39796628,2136.6,2136.1,1.39661614]
[1772687463637,1.39796628,2136.5,2136.1,1.39661614]
[1772687464138,1.4034143,2136.7,2136.1,1.39661614]
[1772687464338,0.39986736,2136.6,2136.1,1.39661614]
[1772687464547,1.39796628,2136.6,2136.1,1.39661614]
[1772687465144,0.00544802,2136.7,2136.1,1.39661614]
[1772687465351,1.4034143,2136.7,2136.1,1.39661614]
[1772687469547,1.39796628,2136.5,2135.9,1.63064614]
[1772687469850,1.4034143,2136.7,2135.9,1.63064614]
[1772687470050,0.39992311,2136.6,2136.0,1.39661614]
[1772687470251,1.4034143,2136.7,2136.0,1.39661614]
[1772687471946,1.39796628,2136.5,2136.0,1.39661614]
[1772687472153,1.4034143,2136.7,2136.0,1.39661614]
[1772687473345,0.00544802,2136.7,2136.0,1.39661614]
[1772687473942,0.00544802,2136.7,2136.2,1.39661614]
[1772687476258,1.4034143,2136.7,2136.2,1.39661614]
[1772687476856,0.00544802,2136.7,2136.2,1.39661614]
[1772687480558,1.21336139,2136.7,2136.2,1.39661614]
[1772687480859,1.21336139,2136.7,2136.1,1.41531526]
[1772687484863,0.00544802,2136.7,2136.1,1.41531526]
[1772687485166,1.21336139,2136.7,2136.1,1.41531526]
[1772687490260,0.03950651,2136.7,2136.1,1.41531526]
[1772687491171,0.04437698,2136.7,2136.1,1.41531526]
[1772687504382,0.00487047,2136.7,2136.1,1.41531526]
[1772687505082,0.39946055,2136.6,2136.1,1.41531526]
[1772687505282,0.00487047,2136.7,2136.1,1.41531526]
[1772687505585,0.39946055,2136.6,2136.1,1.41531526]
[1772687505791,0.00487047,2136.7,2136.1,1.41531526]
[1772687505985,0.39946055,2136.6,2136.1,1.41531526]
[1772687506185,0.52011317,2136.7,2136.1,1.41531526]
[1772687506385,0.91470546,2136.6,2136.1,1.41531526]
[1772687506582,0.5152427,2136.6,2136.1,1.41531526]
[1772687507086,0.00487047,2136.7,2136.1,1.41531526]
[1772687507387,0.39949103,2136.6,2136.1,1.41531526]
[1772687507588,0.51406121,2136.7,2136.1,1.41531526]
[1772687507784,0.3994818,2136.6,2136.1,1.41531526]
[1772687507983,0.51406121,2136.7,2136.1,1.41531526]
[1772687508183,0.39948077,2136.6,2136.1,1.41531526]
[1772687508386,0.51406121,2136.7,2136.1,1.41531526]
[1772687508587,0.49750248,2136.5,2135.8,5.04335728]
[1772687508788,16.19541145,2136.7,2135.9,1.17371844]
[1772687508789,1.59387192,2136.4,2135.9,1.17371844]
[1772687508986,1.19435196,2136.4,2135.9,1.17371844]
[1772687509182,1.19435196,2136.4,2135.8,1.17371844]
[1772687509388,1.59375022,2136.3,2135.8,1.17371844]
[1772687509582,1.19435196,2136.3,2135.8,1.17371844]
[1772687510386,1.19435196,2136.5,2135.8,1.17371844]
[1772687510585,0.40849145,2136.4,2135.8,1.17371844]
[1772687510785,1.19435196,2136.5,2135.8,1.17371844]
[1772687510990,0.40849145,2136.4,2135.8,1.17371844]
[1772687511189,1.19435196,2136.5,2135.8,1.17371844]
[1772687511378,0.40840401,2136.4,2135.8,1.17371844]
[1772687511582,1.19435196,2136.5,2135.8,1.17371844]
[1772687511783,0.40840401,2136.4,2135.8,1.17371844]
[1772687511982,1.19435196,2136.5,2135.8,1.17371844]
[1772687512183,0.40840401,2136.4,2135.8,1.17371844]
[1772687512487,1.19435196,2136.5,2135.8,1.17371844]
[1772687512684,0.40833121,2136.4,2135.8,1.17371844]
[1772687512888,1.19435196,2136.5,2135.8,1.17371844]
[1772687513085,0.00487047,2136.7,2135.9,0.23403]
[1772687513389,0.00487047,2136.7,2136.0,1.17371844]
[1772687515387,1.19922243,2136.7,2136.0,1.17371844]
[1772687518191,1.19435196,2136.6,2136.0,1.17371844]
[1772687525099,1.19435196,2136.4,2136.0,1.17371844]
[1772687532710,1.19435196,2136.4,2135.6,3.91734457]
[1772687532711,1.19435196,2136.3,2135.6,3.91734457]
[1772687532914,1.19435196,2136.3,2135.7,1.17371844]
[1772687541824,1.57802191,2136.4,2135.7,1.17371844]
[1772687542020,1.20067063,2136.2,2135.7,1.17371844]
[1772687549737,1.14735536,2136.4,2135.7,1.17371844]
[1772687549938,1.14735536,2136.5,2135.9,1.18680673]
[1772687550140,0.4019144,2136.4,2135.9,1.18680673]
[1772687550335,1.14735536,2136.5,2135.9,0.01295185]
[1772687557742,5.06802804,2136.7,2135.9,0.01295185]
[1772687557940,1.54626398,2136.6,2135.9,0.01295185]
[1772687558135,0.39890862,2136.5,2135.9,0.01295185]
[1772687558441,1.14735536,2136.6,2135.9,0.01295185]
[1772687558636,1.54626667,2136.5,2135.9,0.01295185]
[1772687558841,1.14735536,2136.5,2135.9,0.01295185]
[1772687559447,1.15222583,2136.7,2136.1,1.18680673]
[1772687560346,1.14735536,2136.9,2136.3,1.18680673]
[1772687560547,1.14735536,2136.8,2136.3,1.18680673]
[1772687561648,1.15337937,2136.8,2136.3,1.18680673]
[1772687563446,1.15337937,2136.8,2136.2,0.234]
[1772687563650,1.14735536,2136.6,2136.2,0.234]
[1772687563851,1.14735536,2136.6,2136.2,1.42080673]
[1772687564147,0.00602401,2136.8,2136.2,1.42080673]
[1772687564148,1.14735536,2136.7,2136.2,1.42080673]
[1772687565340,1.15337937,2136.8,2136.2,1.42080673]
[1772687566349,1.15337937,2136.8,2136.2,0.234]
[1772687566350,1.14735536,2136.6,2136.2,0.234]
[1772687566650,1.14735536,2136.6,2136.2,1.42080673]
[1772687577162,1.14735536,2136.6,2136.2,0.234]
[1772687579760,1.29123167,2136.8,2136.2,1.46189195]
[1772687580658,1.28520766,2137.0,2136.5,1.22789195]
[1772687581363,5.49382412,2137.3,2136.5,1.22789195]
[1772687581364,1.28520766,2137.2,2136.5,1.22789195]
[1772687581558,1.29048091,2137.2,2136.5,1.22789195]
[1772687593571,1.28520766,2137.1,2136.5,1.22789195]
[1772687594572,1.28956137,2137.1,2136.5,1.22789195]
[1772687598577,1.28520766,2137.3,2136.7,1.22789195]
[1772687599682,1.29046248,2137.3,2136.7,1.22789195]
[1772687602480,1.4152356,2137.1,2136.3,5.29828715]
[1772687602682,1.4152356,2137.1,2136.3,1.38504587]
[1772687603184,1.4152356,2137.1,2136.3,5.29828715]
[1772687603384,1.4152356,2137.1,2136.3,1.38504587]
[1772687603782,1.4152356,2137.1,2136.3,5.29828715]
[1772687603981,1.42049042,2137.3,2136.5,1.38504587]
[1772687604177,1.4152356,2137.1,2136.5,1.38504587]
[1772687604583,1.4152356,2137.1,2136.4,4.14720128]
[1772687604783,1.4152356,2137.1,2136.3,1.38504587]
[1772687608286,1.4152356,2137.1,2136.3,5.29828715]
[1772687608491,1.42927039,2136.9,2136.3,5.29828715]
[1772687609587,1.42927039,2136.9,2136.4,1.4053772]
[1772687610388,1.42927039,2137.1,2136.4,1.4053772]
[1772687610588,1.42927039,2137.1,2136.5,1.4053772]
[1772687615586,1.42927039,2137.1,2136.4,1.4053772]
[1772687615792,1.42927039,2136.9,2136.4,1.4053772]
[1772687617786,1.42927039,2136.9,2136.3,3.91324128]
[1772687618191,1.42927039,2136.9,2136.3,5.31861848]
[1772687620095,1.42927039,2136.9,2136.2,4.14723128]
[1772687620795,1.42927039,2136.9,2136.2,5.55260848]
[1772687620991,1.42927039,2136.9,2136.2,0.23399]
[1772687621487,1.42927039,2136.9,2136.2,1.6393672]
[1772687625795,1.42927039,2136.7,2136.0,5.31861848]
[1772687625996,1.42927039,2136.7,2136.0,1.4053772]
[1772687632092,1.57681731,2136.9,2136.0,1.4053772]
[1772687632093,1.4939382,2136.9,2136.0,1.4053772]
[1772687632294,0.39359148,2136.8,2136.0,1.4053772]
[1772687632494,1.4939382,2136.9,2136.0,1.4053772]
[1772687632695,1.4939382,2136.7,2136.0,1.4053772]
[1772687634500,1.4939382,2137.1,2136.0,1.4053772]
[1772687634796,1.4939382,2136.9,2136.0,1.4053772]
[1772687635098,1.4939382,2136.7,2136.0,1.4053772]
[1772687641113,1.4939382,2137.1,2136.2,1.4620417]
[1772687641309,1.8875746,2137.0,2136.2,1.4620417]
[1772687641611,1.8875746,2136.9,2136.2,1.4620417]
[1772687641811,1.4939382,2136.9,2136.2,1.4620417]
[1772687646119,1.88780691,2136.8,2136.2,1.4620417]
[1772687646417,1.4939382,2136.8,2136.2,1.4620417]
[1772687646817,1.4939382,2137.1,2136.2,1.4620417]
[1772687647014,1.4939382,2136.9,2136.2,1.4620417]
[1772687650424,0.39405265,2136.8,2136.2,1.4620417]
[1772687650615,1.4939382,2136.9,2136.2,1.4620417]
[1772687651017,0.39405265,2136.8,2136.2,1.4620417]
[1772687651218,1.4939382,2136.9,2136.2,1.4620417]
[1772687656524,1.4939382,2136.9,2136.4,1.43205537]
[1772687657625,5.34073825,2137.3,2136.7,1.43205537]
[1772687657819,1.4096532,2137.1,2136.7,1.43205537]
[1772687658924,1.40789913,2137.3,2136.7,1.43205537]
[1772687659820,0.00525482,2137.3,2136.7,1.43205537]
[1772687667431,0.00525482,2137.3,2136.9,1.49936091]
[1772687667834,1.44423589,2137.5,2136.9,1.49936091]
[1772687668530,1.44423589,2137.7,2136.9,1.49936091]
[1772687668828,1.44865739,2137.7,2136.9,1.49936091]
[1772687669133,0.0044215,2137.7,2137.1,1.49936091]
[1772687669430,0.0044215,2137.7,2137.3,1.49936091]
[1772687669623,1.44423589,2137.9,2137.3,1.49936091]
[1772687670824,1.4477533,2137.9,2137.3,1.49936091]
[1772687675636,1.44423589,2137.8,2137.3,1.49936091]
[1772687676536,1.44423589,2137.8,2137.2,1.73325091]
[1772687682339,1.44423589,2137.8,2137.2,1.49936091]
[1772687683435,1.44423589,2137.6,2137.1,0.00548544]
[1772687683637,1.44423589,2137.6,2137.1,1.50484635]
[1772687684638,1.44423589,2137.6,2137.1,0.00548544]
[1772687685141,1.44423589,2137.4,2137.1,1.50484635]
[1772687686440,1.44423589,2137.6,2137.1,1.50484635]
[1772687687534,1.44423589,2137.7,2137.1,1.50484635]
[1772687688046,1.44423589,2137.6,2137.1,1.50484635]
[1772687692345,1.44423589,2137.6,2137.1,0.00548544]
[1772687692747,1.44483421,2137.4,2136.9,1.43721229]
[1772687693648,1.44483421,2137.4,2136.9,1.44283074]
[1772687694945,1.44483421,2137.2,2136.8,3.91533315]
[1772687695152,1.44483421,2137.2,2136.6,3.91533315]
[1772687695351,1.44483421,2137.2,2136.4,6.07076233]
[1772687695352,1.44483421,2137.2,2136.7,1.43721229]
[1772687695646,1.44483421,2137.5,2137.2,1.43721229]
[1772687695848,1.44483421,2137.6,2137.2,1.43721229]
[1772687696049,1.87184153,2137.5,2137.2,1.44095767]
[1772687696248,1.44483421,2137.5,2137.2,1.44095767]
[1772687696444,1.44483421,2137.7,2137.2,1.44095767]
[1772687696847,1.44483421,2137.8,2137.2,1.44095767]
[1772687697050,1.58087086,2137.9,2137.2,1.44095767]
[1772687697051,1.86897824,2137.7,2137.2,1.44095767]
[1772687697353,1.44483421,2137.7,2137.2,1.44095767]
[1772687697752,1.58087086,2137.9,2137.2,1.44095767]
[1772687697753,3.02570507,2137.9,2137.2,1.44095767]
[1772687697950,0.42416005,2137.8,2137.2,1.44095767]
[1772687698151,1.57735345,2137.7,2137.2,1.44095767]
[1772687698352,1.44483421,2137.8,2137.2,1.44095767]
[1772687700454,1.44835162,2137.9,2137.2,1.44095767]
[1772687702351,0.00351741,2137.9,2137.2,1.44095767]
[1772687702551,1.44835162,2137.9,2137.2,1.44095767]
[1772687702753,1.44483421,2137.6,2137.2,0.00374538]
[1772687702958,1.44483421,2137.6,2137.2,1.44095767]
[1772687705460,1.44483421,2137.6,2137.0,1.43721229]
[1772687706552,1.44483421,2137.6,2137.0,1.44177228]
[1772687707857,1.44483421,2137.0,2136.7,1.43721229]
[1772687708051,1.44483421,2137.0,2136.6,1.43721229]
[1772687708952,1.44483421,2137.0,2136.6,0.00341696]
[1772687709155,1.44483421,2137.0,2136.5,1.43721229]
[1772687710266,1.44483421,2137.0,2136.5,1.44218913]
[1772687710462,1.44483421,2136.8,2136.2,1.43721229]
[1772687711461,1.44483421,2136.8,2136.2,1.44235286]
[1772687719979,1.50767374,2137.2,2136.2,1.44235286]
[1772687720279,1.50767374,2137.2,2136.4,1.54417336]
[1772687721978,1.50767374,2137.5,2136.4,1.54417336]
[1772687725476,1.50767374,2137.5,2136.6,1.54417336]
[1772687729282,1.49780105,2137.3,2136.6,1.54417336]
[1772687730276,1.49780105,2137.1,2136.3,1.49542968]
[1772687733882,1.49780105,2136.9,2136.3,1.49542968]
[1772687738888,7.36206343,2137.5,2136.3,1.49542968]
[1772687738889,1.49780105,2137.5,2136.7,1.49542968]
[1772687739190,1.49780105,2137.3,2136.7,1.49542968]
[1772687740092,1.49780105,2137.5,2136.7,1.49542968]
[1772687740386,1.92146194,2137.4,2136.7,1.49542968]
[1772687740586,1.49780105,2137.4,2136.7,1.49542968]
[1772687740786,1.49780105,2137.5,2136.7,1.49542968]
[1772687741088,1.92140059,2137.4,2136.7,1.49542968]
[1772687741290,1.49780105,2137.4,2136.7,1.49542968]
[1772687746686,1.49780105,2137.4,2136.6,0.23395]
[1772687746886,1.49780105,2137.4,2136.6,1.72937968]
[1772687747287,1.49780105,2137.2,2136.6,1.72937968]
[1772687753595,1.49780105,2137.2,2136.6,1.49542968]
[1772687754190,1.52358395,2137.0,2136.6,1.49542968]
[1772687756093,1.52358395,2137.0,2136.3,1.52942164]
[1772687760794,3.92583023,2137.4,2136.2,5.76149057]
[1772687761101,1.52358395,2137.8,2136.8,1.52942164]
[1772687761598,1.52358395,2137.7,2136.8,1.52942164]
[1772687761800,1.52358395,2137.6,2136.8,1.52942164]
[1772687761991,1.52358395,2137.7,2136.8,1.52942164]
[1772687765904,1.52358395,2137.8,2136.8,1.52942164]
[1772687770905,1.52358395,2137.7,2136.8,1.52942164]
[1772687772308,1.52358395,2137.5,2136.5,5.438935]
[1772687772508,1.52358395,2137.2,2136.5,1.52942164]
[1772687772899,1.52358395,2137.0,2136.5,1.52942164]
[1772687773306,1.52358395,2137.0,2136.3,1.52942164]
[1772687776004,1.57705046,2137.2,2135.7,9.06811526]
[1772687776005,0.90232536,2136.4,2135.7,9.06811526]
[1772687776206,0.90232536,2135.9,2135.6,10.89639062]
[1772687776406,1.57705046,2136.0,2135.6,1.52942164]
[1772687776407,0.90232536,2136.0,2135.6,1.52942164]
[1772687776607,0.90232536,2136.0,2135.6,6.98487315]
[1772687776801,0.90232536,2136.0,2135.6,5.45545151]
[1772687777009,0.90782113,2136.0,2135.6,0.00588816]
[1772687777209,1.52358395,2135.9,2135.6,0.00588816]
[1772687777707,1.52358395,2135.9,2135.6,6.99076131]
[1772687777914,0.91835561,2136.0,2135.7,3.91151747]
[1772687778109,0.91835561,2136.0,2135.7,5.44093911]
[1772687778412,1.42725306,2135.7,2134.7,1.52942164]
[1772687778614,1.57705046,2134.8,2134.2,2.34362067]
[1772687778804,1.57705046,2134.8,2134.3,2.34362067]
[1772687779006,1.57705046,2134.8,2134.5,2.34362067]
[1772687779405,1.58239204,2134.8,2134.6,4.68362068]
[1772687780214,1.58239204,2134.8,2134.6,10.14496035]
[1772687780614,0.00534158,2134.8,2134.6,10.14496035]
[1772687780810,1.95945899,2134.8,2134.6,7.80133968]
[1772687782125,0.00534158,2134.8,2134.6,2.34000001]
[1772687782617,2.04677641,2135.1,2134.7,5.46133967]
[1772687782823,2.0510358,2135.6,2134.9,2.34362067]
[1772687783225,2.0510358,2135.6,2135.0,7.80496034]
[1772687783426,2.0510358,2135.8,2135.1,2.34362067]
[1772687783623,0.00341569,2135.8,2135.1,2.34362067]
[1772687783923,0.00341569,2135.8,2135.4,2.34362067]
[1772687784125,2.10580339,2135.9,2135.4,2.34362067]
[1772687784322,2.60812475,2136.5,2135.6,2.34362067]
[1772687784323,2.10580339,2136.4,2135.6,2.34362067]
[1772687784523,2.10580339,2136.2,2135.6,2.34362067]
[1772687784723,2.10580339,2136.2,2135.7,7.80496034]
[1772687785026,2.10580339,2136.2,2135.7,2.34362067]
[1772687785325,0.00590045,2136.2,2135.8,2.34362067]
[1772687785525,2.13639733,2136.4,2135.8,2.34362067]
[1772687785725,2.13639733,2136.4,2136.0,2.34362067]
[1772687786330,2.18914392,2136.6,2136.1,2.34362067]
[1772687786529,2.19278416,2136.6,2136.1,0.00487081]
[1772687786919,2.19278416,2136.6,2135.9,2.5620159]
[1772687787121,2.19278416,2136.6,2135.9,8.02335557]
[1772687787829,2.19278416,2136.6,2135.9,8.02818354]
[1772687788827,2.19278416,2136.6,2136.0,2.5620159]
[1772687789431,0.00364024,2136.6,2136.2,2.5620159]
[1772687789628,8.3774798,2136.7,2136.2,2.5620159]
[1772687789931,2.51642087,2136.7,2136.2,2.5620159]
[1772687790619,2.52045845,2136.7,2136.2,2.5620159]
[1772687793333,2.52045845,2136.7,2136.2,4.90201591]
[1772687793826,2.52045845,2136.7,2135.9,0.00482797]
[1772687794032,2.52045845,2136.7,2136.0,5.46133967]
[1772687794731,2.52045845,2136.7,2136.0,8.02335557]
[1772687795524,2.52045845,2136.7,2136.1,2.5620159]
[1772687795928,2.52045845,2136.7,2136.1,4.90201591]
[1772687796123,2.51642087,2136.5,2136.1,4.90201591]
[1772687796532,2.51642087,2136.5,2136.2,2.34000001]
[1772687796932,2.51642087,2136.5,2136.3,2.34000001]
[1772687797134,2.51642087,2136.5,2136.2,5.46133967]
[1772687797928,2.52045845,2136.7,2136.3,2.5620159]
[1772687799029,2.52045845,2136.7,2136.4,2.34000001]
[1772687800634,2.52045845,2136.7,2136.3,2.5620159]
[1772687800934,2.52045845,2136.7,2136.4,2.34000001]
[1772687801331,2.52045845,2136.7,2136.5,1.72800001]
[1772687801533,2.52045845,2136.7,2136.3,5.46133967]
[1772687801733,2.52045845,2136.7,2136.4,1.72800001]
[1772687802234,2.51642087,2136.6,2136.5,1.72800001]
[1772687802433,2.51642087,2136.6,2136.3,5.46133967]
[1772687802734,2.51642087,2136.6,2136.5,1.72800001]
[1772687803135,2.51642087,2136.6,2136.0,2.5620159]
[1772687803325,2.51642087,2136.5,2136.3,5.46133967]
[1772687804537,2.51642087,2136.5,2136.1,2.5620159]
[1772687804738,2.51642087,2136.5,2136.2,5.46133967]
[1772687806438,2.51642087,2136.5,2136.2,8.02335557]
[1772687808440,2.51642087,2136.5,2135.9,2.56684387]
[1772687808743,2.51642087,2136.5,2136.0,5.46133967]
[1772687808935,2.51642087,2136.5,2136.0,8.71684862]
[1772687809136,2.51642087,2136.5,2136.1,3.25550895]
[1772687810039,5.8615169,2136.4,2136.1,3.25550895]
[1772687810538,5.8615169,2136.3,2136.1,3.25550895]
[1772687812243,5.8615169,2136.2,2136.0,3.25550895]
[1772687812542,5.8615169,2136.1,2136.0,8.71684862]
[1772687812743,5.8615169,2136.2,2136.0,7.58459566]
[1772687813143,3.04530998,2136.1,2136.0,5.46133967]
[1772687813343,3.04530998,2136.0,2135.6,3.25550895]
[1772687813743,5.8615169,2135.9,2135.6,3.25550895]
[1772687813944,5.8615169,2135.8,2135.6,3.25550895]
[1772687814139,5.83828691,2135.7,2135.6,3.25550895]
[1772687814340,5.83828691,2135.7,2135.6,3.26152252]
[1772687814541,9.76311777,2136.0,2135.6,3.26152252]
[1772687814745,5.79680663,2135.9,2135.6,3.26152252]
[1772687815047,5.79680663,2135.8,2135.6,0.00601357]
[1772687815242,5.79680663,2135.7,2135.6,0.00601357]
[1772687815442,5.79680663,2135.8,2135.6,3.26152252]
[1772687816246,8.84211661,2135.8,2135.6,0.00601357]
[1772687816447,5.79680663,2135.7,2135.6,0.00601357]
[1772687816642,5.79680663,2135.7,2135.4,3.25550895]
[1772687816643,8.84211661,2135.7,2135.4,3.25550895]
[1772687816844,5.79680663,2135.6,2135.4,3.25550895]
[1772687817246,5.79680663,2135.6,2134.9,0.23414]
[1772687817448,5.79680663,2135.6,2135.0,3.25550895]
[1772687817644,5.79680663,2135.6,2135.0,3.26011525]
[1772687818547,8.84211661,2135.6,2135.0,3.26011525]
[1772687818752,8.84211661,2135.5,2135.0,3.26011525]
[1772687819048,3.04530998,2135.5,2135.0,3.26011525]
[1772687819244,5.75565918,2135.4,2135.0,3.26011525]
[1772687819444,5.75568346,2135.3,2135.0,3.26011525]
[1772687819645,3.04530998,2135.5,2135.0,3.26011525]
[1772687819846,5.7055447,2135.4,2135.0,3.26011525]
[1772687820749,6.97014084,2135.6,2135.0,3.26011525]
[1772687820950,5.70526026,2135.5,2135.0,3.26011525]
[1772687821450,8.75057024,2135.5,2135.0,3.26011525]
[1772687821748,5.70526026,2135.4,2135.0,3.26011525]
[1772687822347,3.04530998,2135.6,2135.0,3.26011525]
[1772687822550,5.7001366,2135.5,2135.0,3.26011525]
[1772687822752,20.14044658,2135.4,2135.0,0.0046063]
[1772687823053,3.04530998,2135.1,2134.1,3.25550895]
[1772687823256,8.74544658,2135.0,2134.1,3.25550895]
[1772687823553,3.04530998,2134.8,2134.1,3.25550895]
[1772687823756,5.69420188,2134.7,2134.1,3.25550895]
[1772687824052,5.69910907,2134.7,2134.1,3.25938795]
[1772687824350,0.00490719,2134.7,2134.1,3.25938795]
[1772687824550,4.63096012,2134.7,2134.1,3.25938795]
[1772687825353,3.05021717,2134.7,2134.1,3.25938795]
[1772687825556,0.00490719,2134.7,2134.1,3.25938795]
[1772687826456,3.05021717,2134.7,2134.1,3.25938795]
[1772687827957,3.04530998,2134.5,2134.1,0.003879]
[1772687828255,3.04530998,2134.4,2134.1,0.003879]
[1772687829253,3.04530998,2134.4,2133.8,3.25550895]
[1772687829958,3.04530998,2134.4,2133.6,3.25550895]
[1772687830160,3.04530998,2134.4,2133.6,3.26088143]
[1772687830963,3.04530998,2134.2,2133.6,0.00537248]
[1772687831654,3.04530998,2134.2,2133.6,3.26088143]
[1772687831852,3.04530998,2134.5,2133.6,3.26088143]
[1772687832053,3.04530998,2134.5,2133.8,3.25550895]
[1772687833862,11.479,2134.6,2133.8,3.25550895]
[1772687834458,0.00490719,2134.7,2134.0,3.25550895]
[1772687834765,11.504,2134.9,2134.0,3.25550895]
[1772687835063,3.04530998,2134.9,2134.0,3.25550895]
[1772687835665,3.04973354,2134.9,2134.0,3.25550895]
[1772687841469,0.00442356,2134.9,2134.4,3.65169201]
[1772687842263,5.65227667,2135.1,2134.4,3.65169201]
[1772687842567,3.67806995,2135.2,2134.4,3.65169201]
[1772687842761,15.47683086,2135.5,2134.6,3.65169201]
[1772687842762,3.67806995,2135.3,2134.6,3.65169201]
[1772687842966,3.67806995,2135.5,2134.8,3.65169201]
[1772687843161,5.65261088,2135.4,2134.8,3.65169201]
[1772687843460,9.33598625,2135.4,2134.8,3.65169201]
[1772687843659,0.00530542,2135.4,2134.8,3.65169201]
[1772687843868,9.33463063,2135.7,2135.0,3.65169201]
[1772687844170,5.65832489,2135.6,2135.0,3.65169201]
[1772687844773,5.66435031,2135.6,2135.0,3.65169201]
[1772687846071,9.34242026,2135.6,2135.0,3.65169201]
[1772687846376,9.33639484,2135.5,2135.0,3.65169201]
[1772687846571,3.67806995,2135.5,2135.0,3.65169201]
[1772687847277,3.61163727,2135.3,2135.0,3.65169201]
[1772687848471,3.61163727,2135.1,2134.5,3.50523854]
[1772687849969,3.61163727,2134.9,2134.5,3.50523854]
[1772687851173,3.61163727,2134.9,2134.4,3.73941854]
[1772687851772,3.61163727,2135.3,2134.4,3.73941854]
[1772687851978,3.61163727,2135.1,2134.4,3.73941854]
[1772687852180,3.61163727,2134.9,2134.4,3.73941854]
[1772687855280,3.61163727,2134.9,2134.4,3.50523854]